bitfinex-derivatives/quotes_BTCF0:USTF0_20260111
["timestamp","ask_amount","ask_price","bid_price","bid_amount"]
[1768113507896,0.01146672,90725.0,90709.0,0.011037]
[1768113508096,0.011036,90722.0,90706.0,0.10428712]
[1768113508690,0.011036,90722.0,90709.0,0.011037]
[1768113508993,0.01146672,90725.0,90706.0,0.10428712]
[1768113509300,0.011035,90724.0,90706.0,0.10428712]
[1768113510194,0.011035,90724.0,90709.0,0.011037]
[1768113510396,0.011036,90722.0,90707.0,0.011037]
[1768113511095,0.011035,90724.0,90709.0,0.011037]
[1768113511597,0.011035,90723.0,90709.0,0.011037]
[1768113512593,0.01146672,90725.0,90706.0,0.10428712]
[1768113512894,0.011036,90722.0,90706.0,0.10428712]
[1768113514296,0.011036,90722.0,90709.0,0.011037]
[1768113515397,0.02250172,90725.0,90709.0,0.011037]
[1768113515596,0.011035,90724.0,90709.0,0.011037]
[1768113516496,0.011035,90724.0,90706.0,0.11337073]
[1768113516795,0.011035,90724.0,90707.0,0.0111659]
[1768113517499,0.011035,90724.0,90708.0,0.011037]
[1768113517686,0.011035,90724.0,90709.0,0.011037]
[1768113517887,0.011035,90723.0,90708.0,0.011037]
[1768113518596,0.011035,90722.0,90706.0,0.10288361]
[1768113518996,0.011036,90720.0,90706.0,0.10288361]
[1768113519188,0.011036,90719.0,90706.0,0.10288361]
[1768113519388,0.01146672,90725.0,90706.0,0.10288361]
[1768113519587,0.01136268,90724.0,90706.0,0.10288361]
[1768113520202,0.011036,90721.0,90706.0,0.11392061]
[1768113520503,0.01136268,90724.0,90707.0,0.011037]
[1768113520504,0.011036,90720.0,90707.0,0.011037]
[1768113521390,0.011035,90722.0,90706.0,0.11392061]
[1768113522099,0.02239768,90724.0,90708.0,0.011037]
[1768113522290,0.00946643,90725.0,90712.0,0.011037]
[1768113523702,0.011035,90724.0,90707.0,0.0111659]
[1768113524101,0.011035,90724.0,90708.0,0.011037]
[1768113524291,0.011035,90724.0,90709.0,0.011037]
[1768113525301,0.011036,90722.0,90707.0,0.0111659]
[1768113525501,0.011036,90722.0,90707.0,0.0222029]
[1768113529202,0.011036,90722.0,90707.0,0.0111659]
[1768113529404,0.011036,90720.0,90707.0,0.0111659]
[1768113530705,0.00946643,90725.0,90707.0,0.0111659]
[1768113530706,0.011035,90723.0,90707.0,0.0111659]
[1768113531003,0.011036,90721.0,90707.0,0.0111659]
[1768113531306,0.011035,90724.0,90707.0,0.0111659]
[1768113532200,0.011035,90722.0,90707.0,0.0111659]
[1768113532407,0.011035,90722.0,90707.0,0.0222029]
[1768113532807,0.02050143,90725.0,90709.0,0.011037]
[1768113533104,0.011035,90723.0,90709.0,0.011037]
[1768113534105,0.02050143,90725.0,90709.0,0.011037]
[1768113534308,0.02050143,90725.0,90711.0,0.011037]
[1768113535408,0.03142761,90725.0,90711.0,0.011037]
[1768113535618,0.011035,90724.0,90709.0,0.011037]
[1768113537310,0.011035,90722.0,90709.0,0.011037]
[1768113537610,0.011035,90724.0,90709.0,0.011037]
[1768113537810,0.011035,90724.0,90710.0,0.011037]
[1768113538610,0.011035,90723.0,90710.0,0.011037]
[1768113538809,0.011035,90723.0,90707.0,0.0111659]
[1768113539110,0.011035,90723.0,90708.0,0.011037]
[1768113539410,0.011036,90721.0,90707.0,0.0111659]
[1768113539713,0.011036,90720.0,90707.0,0.0111659]
[1768113540413,0.011035,90722.0,90707.0,0.0222029]
[1768113540808,0.02039261,90725.0,90709.0,0.011037]
[1768113541011,0.011035,90724.0,90710.0,0.011037]
[1768113541908,0.011035,90724.0,90709.0,0.011037]
[1768113543914,0.011035,90722.0,90707.0,0.0222029]
[1768113544714,0.011035,90722.0,90707.0,0.011037]
[1768113545215,0.011035,90724.0,90707.0,0.011037]
[1768113545816,0.011035,90724.0,90709.0,0.011037]
[1768113547016,0.02039261,90725.0,90710.0,0.011037]
[1768113549217,0.02039261,90725.0,90711.0,0.011037]
[1768113550914,0.02039261,90725.0,90710.0,0.011037]
[1768113551119,0.02039261,90725.0,90708.0,0.011037]
[1768113552119,0.011035,90724.0,90708.0,0.011037]
[1768113552416,0.011035,90724.0,90709.0,0.011037]
[1768113552606,0.011035,90724.0,90706.0,0.11436766]
[1768113552607,0.02039261,90725.0,90707.0,0.011037]
[1768113553418,0.01124331,90724.0,90706.0,0.11392061]
[1768113553819,0.011036,90721.0,90708.0,0.011037]
[1768113554121,0.02227831,90724.0,90709.0,0.011037]
[1768113556518,0.011036,90722.0,90707.0,0.011037]
[1768113558222,0.011036,90719.0,90706.0,0.10288361]
[1768113559918,0.01124331,90724.0,90706.0,0.10288361]
[1768113560117,0.011036,90721.0,90706.0,0.10288361]
[1768113560321,0.01124331,90724.0,90706.0,0.10288361]
[1768113560622,0.15193035,90720.0,90706.0,0.10288361]
[1768113561115,0.15193035,90720.0,90706.0,0.11392061]
[1768113561623,0.011036,90719.0,90706.0,0.10288361]
[1768113565637,0.15193035,90720.0,90706.0,0.10288361]
[1768113566930,0.15193035,90720.0,90706.0,0.11392061]
[1768113567132,0.15193035,90720.0,90707.0,0.011037]
[1768113568235,0.15193035,90720.0,90710.0,0.011037]
[1768113568436,0.01124331,90724.0,90710.0,0.011037]
[1768113570240,0.01124331,90724.0,90714.0,0.011036]
[1768113571940,0.16317366,90724.0,90714.0,0.011036]
[1768113573831,0.16317366,90724.0,90711.0,0.011037]
[1768113574032,0.15193035,90721.0,90706.0,0.11436766]
[1768113574943,0.01124331,90724.0,90706.0,0.11436766]
[1768113575141,0.01124331,90724.0,90711.0,0.011037]
[1768113575740,0.01124331,90724.0,90712.0,0.011037]
[1768113576144,0.01124331,90724.0,90713.0,0.011036]
[1768113577047,0.00946643,90725.0,90713.0,0.011036]
[1768113577247,0.00946643,90725.0,90710.0,0.011037]
[1768113578048,0.00946643,90725.0,90711.0,0.011037]
[1768113578256,0.00946643,90725.0,90712.0,0.011037]
[1768113578452,0.011035,90726.0,90712.0,0.011037]
[1768113578752,0.091035,90726.0,90712.0,0.011037]
[1768113579555,0.091035,90726.0,90710.0,0.011037]
[1768113580053,0.091035,90726.0,90711.0,0.011037]
[1768113581164,0.011035,90725.0,90711.0,0.011037]
[1768113581363,0.011035,90725.0,90709.0,0.011037]
[1768113582950,0.011035,90724.0,90709.0,0.011037]
[1768113583468,0.011035,90726.0,90711.0,0.011037]
[1768113583658,0.091035,90726.0,90711.0,0.011037]
[1768113584465,0.011035,90724.0,90710.0,0.011037]
[1768113585564,0.011035,90726.0,90710.0,0.011037]
[1768113585754,0.091035,90726.0,90710.0,0.011037]
[1768113586157,0.011035,90723.0,90708.0,0.011037]
[1768113586965,0.011035,90725.0,90710.0,0.011037]
[1768113587768,0.011035,90724.0,90710.0,0.011037]
[1768113588368,0.011035,90724.0,90707.0,0.02036596]
[1768113588572,0.011035,90724.0,90710.0,0.011037]
[1768113589673,0.011035,90726.0,90711.0,0.011037]
[1768113589866,0.011035,90725.0,90711.0,0.011037]
[1768113590068,0.011035,90726.0,90711.0,0.011037]
[1768113590267,0.091035,90726.0,90711.0,0.011037]
[1768113592665,0.08,90726.0,90711.0,0.011037]
[1768113595078,0.09122759,90726.0,90711.0,0.011037]
[1768113599580,0.09122759,90726.0,90712.0,0.011037]
[1768113601281,0.01122759,90725.0,90712.0,0.011037]
[1768113602579,0.01122759,90725.0,90710.0,0.011037]
[1768113602786,0.02226259,90725.0,90710.0,0.011037]
[1768113602978,0.02226259,90725.0,90707.0,0.02036596]
[1768113602979,0.01122759,90725.0,90712.0,0.011037]
[1768113603374,0.01111759,90725.0,90712.0,0.011037]
[1768113603579,0.01111759,90725.0,90707.0,0.02036596]
[1768113603874,0.01111759,90725.0,90710.0,0.011037]
[1768113604077,0.01111759,90725.0,90711.0,0.011037]
[1768113604684,0.01111759,90725.0,90712.0,0.011037]
[1768113612491,0.01111759,90725.0,90714.0,0.011036]
[1768113619278,0.01050299,90728.0,90714.0,0.011036]
[1768113619477,0.09050299,90728.0,90714.0,0.011036]
[1768113621290,0.01050299,90727.0,90714.0,0.011036]
[1768113621494,0.08050299,90727.0,90714.0,0.011036]
[1768113625894,0.08050299,90727.0,90707.0,0.02036596]
[1768113627292,0.08050299,90727.0,90713.0,0.011036]
[1768113627594,0.08050299,90727.0,90709.0,0.01148007]
[1768113627793,0.07,90727.0,90718.0,0.011036]
[1768113628088,0.07,90727.0,90716.0,0.011036]
[1768113629195,0.08050299,90727.0,90716.0,0.011036]
[1768113629895,0.08050299,90727.0,90714.0,0.011036]
[1768113630093,0.08050299,90727.0,90712.0,0.011037]
[1768113632198,0.08050299,90727.0,90713.0,0.011036]
[1768113633097,0.01050299,90726.0,90713.0,0.011036]
[1768113633398,0.08050299,90726.0,90713.0,0.011036]
[1768113638802,0.01068419,90725.0,90713.0,0.011036]
[1768113641705,0.01068419,90725.0,90715.0,0.011036]
[1768113642202,0.01068419,90725.0,90707.0,0.01148007]
[1768113644202,0.01068419,90725.0,90713.0,0.011036]
[1768113646906,0.01068419,90725.0,90714.0,0.011036]
[1768113650307,0.01068419,90725.0,90707.0,0.01148007]
[1768113652308,0.01068419,90725.0,90713.0,0.011036]
[1768113652607,0.01068419,90725.0,90707.0,0.01148007]
[1768113653708,0.01068419,90725.0,90714.0,0.011036]
[1768113654617,0.01068419,90725.0,90707.0,0.01148007]
[1768113656210,0.01068419,90725.0,90713.0,0.011036]
[1768113658111,0.01068419,90725.0,90714.0,0.011036]
[1768113660515,0.01068419,90725.0,90716.0,0.011036]
[1768113660903,0.01091113,90729.0,90716.0,0.011036]
[1768113661106,0.09091113,90729.0,90716.0,0.011036]
[1768113661305,0.01091113,90728.0,90716.0,0.011036]
[1768113661502,0.09091113,90728.0,90716.0,0.011036]
[1768113662115,0.09091113,90728.0,90713.0,0.011036]
[1768113662816,0.01091113,90727.0,90713.0,0.011036]
[1768113663015,0.09091113,90727.0,90714.0,0.011036]
[1768113663618,0.09091113,90727.0,90715.0,0.011036]
[1768113666121,0.09091113,90727.0,90716.0,0.011036]
[1768113670115,0.0105716,90726.0,90716.0,0.011036]
[1768113670317,0.0905716,90726.0,90716.0,0.011036]
[1768113672020,0.0905716,90726.0,90714.0,0.011036]
[1768113677122,0.0905716,90726.0,90715.0,0.011036]
[1768113679423,0.0105716,90726.0,90715.0,0.011036]
[1768113680317,0.0105716,90726.0,90707.0,0.01148007]
[1768113680526,0.0105716,90726.0,90708.0,0.011037]
[1768113681725,0.0105716,90726.0,90716.0,0.011036]
[1768113684326,0.0105716,90726.0,90708.0,0.011037]
[1768113685217,0.0105716,90726.0,90714.0,0.011036]
[1768113686830,0.0105716,90726.0,90708.0,0.011037]
[1768113687129,0.0105716,90726.0,90715.0,0.011036]
[1768113694023,0.01069642,90729.0,90715.0,0.011036]
[1768113694224,0.08069642,90729.0,90715.0,0.011036]
[1768113694625,0.01069642,90728.0,90715.0,0.011036]
[1768113694826,0.08069642,90728.0,90715.0,0.011036]
[1768113695531,0.08069642,90728.0,90713.0,0.011036]
[1768113695733,0.08069642,90728.0,90708.0,0.011037]
[1768113698137,0.01069642,90727.0,90714.0,0.011036]
[1768113698339,0.08069642,90727.0,90714.0,0.011036]
[1768113702649,0.08069642,90727.0,90715.0,0.011036]
[1768113709755,0.08069642,90727.0,90716.0,0.011036]
[1768113711555,0.08069642,90727.0,90717.0,0.011036]
[1768113711754,0.08069642,90727.0,90715.0,0.011036]
[1768113711970,0.08069642,90727.0,90716.0,0.011036]
[1768113713154,0.01069642,90726.0,90716.0,0.011036]
[1768113713357,0.08069642,90726.0,90716.0,0.011036]
[1768113716363,0.08069642,90726.0,90717.0,0.011036]
[1768113716859,0.08069642,90726.0,90710.0,0.15192489]
[1768113717957,0.08069642,90726.0,90707.0,0.01148007]
[1768113718160,0.08069642,90726.0,90715.0,0.011036]
[1768113718651,0.08069642,90726.0,90716.0,0.011036]
[1768113718852,0.08069642,90726.0,90717.0,0.011036]
[1768113721268,0.08069642,90726.0,90715.0,0.011036]
[1768113723662,0.08069642,90726.0,90716.0,0.011036]
[1768113723870,0.01045263,90732.0,90712.0,0.011037]
[1768113724057,0.0938,90737.0,90724.0,0.011035]
[1768113724253,0.08,90737.0,90720.0,0.17144566]
[1768113724457,0.15192489,90740.0,90731.0,0.011034]
[1768113724658,0.03,90740.0,90731.0,0.011034]
[1768113725158,0.04045263,90740.0,90721.0,0.03055577]
[1768113725560,0.01045263,90739.0,90722.0,0.011035]
[1768113727270,0.01045263,90739.0,90729.0,0.011034]
[1768113730768,0.01045263,90739.0,90727.0,0.011035]
[1768113731359,0.01045263,90739.0,90721.0,0.01952077]
[1768113731564,0.01045263,90739.0,90721.0,0.0090199]
[1768113733173,0.01045263,90739.0,90724.0,0.011035]
[1768113734577,0.01045263,90738.0,90724.0,0.011035]
[1768113735581,0.01045263,90737.0,90724.0,0.011035]
[1768113738882,0.01045263,90737.0,90725.0,0.011035]
[1768113739784,0.01045263,90737.0,90717.0,0.01050087]
[1768113740180,0.01045263,90737.0,90725.0,0.011035]
[1768113742584,0.01045263,90737.0,90717.0,0.01050087]
[1768113742984,0.01045263,90737.0,90723.0,0.011035]
[1768113743389,0.01045263,90736.0,90717.0,0.01050087]
[1768113743581,0.01045263,90736.0,90723.0,0.011035]
[1768113743990,0.01045263,90736.0,90724.0,0.011035]
[1768113745589,0.01045263,90736.0,90722.0,0.011035]
[1768113748096,0.02148663,90736.0,90717.0,0.01050087]
[1768113748392,0.01045263,90730.0,90718.0,0.0938]
[1768113748584,0.01045263,90730.0,90719.0,0.0938]
[1768113748892,0.01045263,90730.0,90720.0,0.0938]
[1768113752695,0.00912367,90731.0,90720.0,0.0938]
[1768113753397,0.00912367,90731.0,90721.0,0.011036]
[1768113753993,0.01045263,90733.0,90721.0,0.011036]
[1768113754195,0.00902958,90730.0,90710.0,0.0090199]
[1768113754387,0.01100375,90724.0,90710.0,0.011037]
[1768113754586,0.00902958,90721.0,90706.0,0.2]
[1768113754787,0.01100375,90720.0,90706.0,0.2]
[1768113755482,0.011036,90719.0,90706.0,0.2]
[1768113755792,0.011034,90731.0,90698.0,0.02127594]
[1768113755793,0.01100375,90714.0,90700.0,0.0938]
[1768113755993,0.01100375,90713.0,90700.0,0.0938]
[1768113756392,0.01100375,90713.0,90701.0,0.011038]
[1768113756987,0.01100375,90713.0,90700.0,0.0938]
[1768113758198,0.01100375,90713.0,90700.0,0.104838]
[1768113758998,0.01100375,90713.0,90700.0,0.0938]
[1768113759700,0.011037,90711.0,90700.0,0.0938]
[1768113761302,0.01100375,90713.0,90700.0,0.0938]
[1768113762604,0.02204075,90713.0,90700.0,0.0938]
[1768113763405,0.011037,90711.0,90700.0,0.0938]
[1768113764696,0.011037,90713.0,90700.0,0.0938]
[1768113765696,0.011037,90711.0,90700.0,0.0938]
[1768113765902,0.011037,90710.0,90700.0,0.0938]
[1768113766294,0.011037,90710.0,90695.0,0.01129762]
[1768113766295,0.011037,90710.0,90696.0,0.011039]
[1768113766999,0.011037,90713.0,90696.0,0.011039]
[1768113767187,0.011037,90711.0,90696.0,0.011039]
[1768113767389,0.011037,90711.0,90695.0,0.01129762]
[1768113769506,0.011037,90709.0,90695.0,0.01129762]
[1768113769901,0.011037,90711.0,90695.0,0.01129762]
[1768113770107,0.011037,90711.0,90696.0,0.01129762]
[1768113770606,0.011036,90714.0,90698.0,0.01129762]
[1768113771307,0.0938,90717.0,90705.0,0.01129762]
[1768113771494,0.0938,90717.0,90706.0,0.00997832]
[1768113771695,0.0938,90717.0,90707.0,0.01129762]
[1768113772098,0.011036,90721.0,90707.0,0.01129762]
[1768113772604,0.104836,90721.0,90707.0,0.01129762]
[1768113772790,0.0938,90721.0,90706.0,0.00997832]
[1768113773194,0.0938,90721.0,90703.0,0.01129762]
[1768113773400,0.011036,90720.0,90704.0,0.01129762]
[1768113774508,0.011036,90718.0,90704.0,0.01129762]
[1768113775308,0.0938,90721.0,90704.0,0.01129762]
[1768113775904,0.01163065,90723.0,90704.0,0.01129762]
[1768113776205,0.02097902,90724.0,90704.0,0.01129762]
[1768113776206,0.01163065,90722.0,90704.0,0.01129762]
[1768113776396,0.0938,90721.0,90704.0,0.01129762]
[1768113777306,0.0938,90721.0,90704.0,0.02233562]
[1768113777506,0.02266565,90722.0,90704.0,0.02233562]
[1768113777705,0.0938,90721.0,90704.0,0.02233562]
[1768113779108,0.02266565,90722.0,90704.0,0.02233562]
[1768113779309,0.0938,90721.0,90706.0,0.011037]
[1768113781811,0.02266565,90722.0,90706.0,0.011037]
[1768113782000,0.0938,90721.0,90706.0,0.011037]
[1768113782707,0.00994402,90724.0,90711.0,0.011037]
[1768113782913,0.0938,90723.0,90709.0,0.01128762]
[1768113783307,0.0938,90723.0,90707.0,0.02069588]
[1768113783806,0.011035,90722.0,90707.0,0.00965888]
[1768113784014,0.10533252,90723.0,90706.0,0.011037]
[1768113785006,0.10533252,90723.0,90702.0,0.00940954]
[1768113785007,0.011035,90722.0,90703.0,0.011038]
[1768113785206,0.02256752,90722.0,90705.0,0.011037]
[1768113791215,0.01153252,90722.0,90706.0,0.011037]
[1768113792805,0.01153252,90722.0,90707.0,0.011037]
[1768113794016,0.01153252,90722.0,90708.0,0.011037]
[1768113794814,0.01153252,90722.0,90709.0,0.011037]
[1768113795816,0.01153252,90722.0,90703.0,0.01100648]
[1768113796318,0.01153252,90722.0,90707.0,0.011037]
[1768113796521,0.15194352,90720.0,90707.0,0.011037]
[1768113798120,0.01153252,90722.0,90707.0,0.011037]
[1768113798417,0.15194352,90720.0,90707.0,0.011037]
[1768113800225,0.15194352,90720.0,90708.0,0.011037]
[1768113800621,0.15194352,90720.0,90709.0,0.011037]
[1768113803520,0.15194352,90720.0,90710.0,0.011037]
[1768113803726,0.15194352,90720.0,90711.0,0.011037]
[1768113805630,0.15194352,90720.0,90709.0,0.011037]
[1768113809223,0.15194352,90720.0,90711.0,0.011037]
[1768113809830,0.01153252,90723.0,90705.0,0.011037]
[1768113810132,0.00952882,90724.0,90711.0,0.011037]
[1768113810422,0.02106134,90724.0,90711.0,0.011037]
[1768113810627,0.01153252,90723.0,90711.0,0.011037]
[1768113811627,0.15194352,90721.0,90711.0,0.011037]
[1768113812531,0.15194352,90721.0,90708.0,0.011037]
[1768113812830,0.15194352,90721.0,90710.0,0.011037]
[1768113813525,0.15194352,90721.0,90711.0,0.011037]
[1768113815031,0.01153252,90723.0,90711.0,0.011037]
[1768113817038,0.01153252,90723.0,90705.0,0.011037]
[1768113817345,0.01153252,90723.0,90712.0,0.011037]
[1768113821247,0.01153252,90723.0,90710.0,0.011037]
[1768113824351,0.00551119,90725.0,90712.0,0.011037]
[1768113824534,0.00551119,90725.0,90709.0,0.01202314]
[1768113824938,0.00551119,90725.0,90705.0,0.03223249]
[1768113825543,0.01661369,90725.0,90705.0,0.03223249]
[1768113827247,0.01661369,90725.0,90712.0,0.011037]
[1768113830650,0.01661369,90725.0,90714.0,0.011036]
[1768113836361,0.01661369,90725.0,90715.0,0.011036]
[1768113839357,0.01661369,90725.0,90713.0,0.011036]
[1768113840663,0.01661369,90725.0,90712.0,0.011037]
[1768113841462,0.01661369,90725.0,90706.0,0.01202314]
[1768113841961,0.01661369,90725.0,90712.0,0.011037]
[1768113843360,0.01661369,90725.0,90713.0,0.011036]
[1768113850164,0.01661369,90725.0,90711.0,0.011037]
[1768113850868,0.01661369,90725.0,90712.0,0.011037]
[1768113852867,0.01661369,90725.0,90706.0,0.01202314]
[1768113853472,0.01661369,90725.0,90712.0,0.011037]
[1768113853669,0.01661369,90725.0,90706.0,0.01202314]
[1768113854769,0.01661369,90725.0,90711.0,0.011037]
[1768113854972,0.01661369,90725.0,90712.0,0.011037]
[1768113856470,0.01661369,90725.0,90713.0,0.011036]
[1768113861372,0.01661369,90725.0,90706.0,0.01202314]
[1768113861373,0.01661369,90725.0,90714.0,0.011036]
[1768113861574,0.01661369,90725.0,90713.0,0.011036]
[1768113864068,0.01661369,90725.0,90714.0,0.011036]
[1768113866982,0.01661369,90725.0,90706.0,0.01202314]
[1768113867579,0.01661369,90725.0,90713.0,0.011036]
[1768113868878,0.01661369,90725.0,90714.0,0.011036]
[1768113871075,0.01661369,90725.0,90706.0,0.01202314]
[1768113871378,0.01661369,90725.0,90713.0,0.011036]
[1768113872977,0.01661369,90725.0,90714.0,0.011036]
[1768113873970,0.01661369,90725.0,90715.0,0.011036]
[1768113875368,0.01661369,90725.0,90706.0,0.01202314]
[1768113875369,0.01661369,90725.0,90716.0,0.011036]
[1768113877684,0.01661369,90725.0,90713.0,0.011036]
[1768113881288,0.01661369,90725.0,90711.0,0.011037]
[1768113883687,0.02764869,90725.0,90706.0,0.02195119]
[1768113883986,0.02764869,90725.0,90707.0,0.01239068]
[1768113885081,0.01661369,90725.0,90710.0,0.011037]
[1768113885275,0.02764869,90725.0,90710.0,0.011037]
[1768113886287,0.01661369,90725.0,90710.0,0.011037]
[1768113889293,0.01661369,90725.0,90711.0,0.011037]
[1768113890990,0.01661369,90725.0,90712.0,0.011037]
[1768113895894,0.01661369,90725.0,90707.0,0.01239068]
[1768113897196,0.01661369,90725.0,90713.0,0.011036]
[1768113897493,0.01661369,90725.0,90707.0,0.01239068]
[1768113897696,0.01661369,90725.0,90711.0,0.011037]
[1768113898991,0.01661369,90725.0,90707.0,0.01239068]
[1768113899198,0.01661369,90725.0,90712.0,0.011037]
[1768113902699,0.00551119,90725.0,90714.0,0.02305659]
[1768113902897,0.00992746,90738.0,90725.0,0.011035]
[1768113903094,0.02611353,90737.0,90719.0,0.01202059]
[1768113903393,0.0938,90741.0,90726.0,0.01202059]
[1768113904096,0.0938,90741.0,90726.0,0.02305559]
[1768113904398,0.0938,90741.0,90728.0,0.011035]
[1768113904799,0.0938,90741.0,90725.0,0.011035]
[1768113905590,0.10551646,90741.0,90726.0,0.011035]
[1768113910401,0.01171646,90740.0,90726.0,0.011035]
[1768113910902,0.01171646,90740.0,90727.0,0.011035]
[1768113914297,0.01171646,90740.0,90728.0,0.011035]
[1768113919407,0.0938,90742.0,90728.0,0.011035]
[1768113920513,0.15187834,90740.0,90728.0,0.011035]
[1768113923317,0.15187834,90740.0,90722.0,0.02163469]
[1768113923513,0.01171646,90739.0,90718.0,0.01205289]
[1768113924416,0.01171646,90733.0,90710.0,0.16104931]
[1768113924605,0.15187834,90730.0,90721.0,0.011035]
[1768113924904,0.01171646,90732.0,90721.0,0.011035]
[1768113926419,0.15187834,90731.0,90721.0,0.011035]
[1768113928119,0.01171646,90732.0,90722.0,0.011035]
[1768113928320,0.15187834,90730.0,90722.0,0.011035]
[1768113930419,0.15187834,90730.0,90714.0,0.02308889]
[1768113931219,0.15187834,90730.0,90724.0,0.011035]
[1768113931518,0.15187834,90730.0,90715.0,0.011036]
[1768113931723,0.01171646,90732.0,90715.0,0.011036]
[1768113932716,0.15187834,90730.0,90715.0,0.011036]
[1768113933223,0.15187834,90730.0,90723.0,0.011035]
[1768113933412,0.01171646,90732.0,90715.0,0.011036]
[1768113935122,0.01171646,90732.0,90722.0,0.011035]
[1768113935925,0.01171646,90732.0,90724.0,0.011035]
[1768113938529,0.01171646,90732.0,90725.0,0.011035]
[1768113938932,0.01171646,90732.0,90726.0,0.011035]
[1768113939527,0.00904535,90733.0,90726.0,0.011035]
[1768113939822,0.0116235,90735.0,90729.0,0.011035]
[1768113941131,0.0116235,90735.0,90730.0,0.011034]
[1768113941733,0.0116235,90738.0,90720.0,0.011036]
[1768113942126,0.0116235,90738.0,90731.0,0.011034]
[1768113942526,0.0116235,90738.0,90728.0,0.011035]
[1768113943533,0.0116235,90738.0,90718.0,0.01166879]
[1768113943727,0.0116235,90738.0,90719.0,0.01166879]
[1768113945233,0.0116235,90738.0,90726.0,0.011035]
[1768113947332,0.0116235,90738.0,90723.0,0.011035]
[1768113948536,0.0116235,90738.0,90724.0,0.011035]
[1768113948733,0.15187834,90740.0,90726.0,0.011035]
[1768113949228,0.15187834,90740.0,90724.0,0.011035]
[1768113949531,0.16350184,90740.0,90724.0,0.011035]
[1768113949731,0.0116235,90739.0,90724.0,0.011035]
[1768113952834,0.0116235,90739.0,90725.0,0.011035]
[1768113955137,0.0116235,90739.0,90721.0,0.00992713]
[1768113956133,0.0116235,90739.0,90726.0,0.011035]
[1768113959433,0.0116235,90739.0,90727.0,0.011035]
[1768113961233,0.0116235,90739.0,90728.0,0.011035]
[1768113961836,0.0116235,90739.0,90721.0,0.02096213]
[1768113962034,0.0116235,90739.0,90729.0,0.011035]
[1768113962429,0.0116235,90739.0,90728.0,0.011035]
[1768113963736,0.0116235,90739.0,90726.0,0.011035]
[1768113964038,0.0116235,90739.0,90729.0,0.011034]
[1768113967136,0.0116235,90739.0,90721.0,0.02096213]
[1768113967337,0.0116235,90739.0,90721.0,0.03301417]
[1768113967535,0.0116235,90739.0,90729.0,0.011034]
[1768113969137,0.0116235,90739.0,90721.0,0.03301417]
[1768113970237,0.0116235,90739.0,90728.0,0.011035]
[1768113970536,0.15187834,90740.0,90729.0,0.011034]
[1768113971036,0.15187834,90740.0,90721.0,0.03301417]
[1768113971841,0.15187834,90740.0,90728.0,0.011035]
[1768113974132,0.15187834,90740.0,90721.0,0.03301417]
[1768113976241,0.15187834,90740.0,90728.0,0.011035]
[1768113976430,0.15187834,90740.0,90721.0,0.03301417]
[1768113979042,0.01248446,90739.0,90721.0,0.02197917]
[1768113980144,0.01248446,90739.0,90727.0,0.011035]
[1768113983845,0.01248446,90739.0,90721.0,0.02197917]
[1768113985863,0.01248446,90739.0,90728.0,0.011035]
[1768113990655,0.01248446,90739.0,90729.0,0.011034]
[1768113995355,0.01248446,90739.0,90721.0,0.02197917]
[1768113996256,0.01248446,90739.0,90728.0,0.011035]
[1768113996457,0.01248446,90739.0,90729.0,0.011034]
[1768113997858,0.01248446,90739.0,90726.0,0.011035]
[1768113998156,0.011033,90741.0,90726.0,0.011035]
[1768113998344,0.081033,90741.0,90726.0,0.011035]
[1768114001158,0.07,90741.0,90727.0,0.011035]
[1768114001556,0.082329,90741.0,90727.0,0.011035]
[1768114007568,0.082329,90741.0,90721.0,0.02197917]
[1768114008164,0.082329,90741.0,90727.0,0.011035]
[1768114009466,0.082329,90741.0,90728.0,0.011035]
[1768114010768,0.012329,90740.0,90728.0,0.011035]
[1768114011369,0.012329,90740.0,90729.0,0.011034]
[1768114012170,0.0090664,90732.0,90712.0,0.011037]
[1768114012359,0.0213954,90726.0,90710.0,0.0938]
[1768114012558,0.012329,90725.0,90710.0,0.0938]
[1768114013264,0.012329,90725.0,90713.0,0.011036]
[1768114013471,0.0090664,90726.0,90713.0,0.011036]
[1768114013762,0.0090664,90726.0,90715.0,0.011036]
[1768114013965,0.0090664,90726.0,90710.0,0.0938]
[1768114014365,0.0090664,90726.0,90714.0,0.011036]
[1768114016270,0.0090664,90726.0,90710.0,0.0938]
[1768114016769,0.012329,90729.0,90718.0,0.011036]
[1768114016970,0.08,90729.0,90718.0,0.011036]
[1768114017376,0.091035,90729.0,90713.0,0.011036]
[1768114017675,0.08,90729.0,90713.0,0.011036]
[1768114019671,0.00911273,90731.0,90711.0,0.01287091]
[1768114019874,0.011035,90729.0,90714.0,0.011036]
[1768114020572,0.00911273,90731.0,90714.0,0.011036]
[1768114021567,0.02014673,90731.0,90715.0,0.011036]
[1768114021764,0.02014673,90731.0,90716.0,0.011036]
[1768114021963,0.02014673,90731.0,90717.0,0.011036]
[1768114022177,0.00911273,90731.0,90712.0,0.01287091]
[1768114022375,0.00911273,90731.0,90722.0,0.011035]
[1768114022572,0.00911273,90731.0,90717.0,0.011036]
[1768114023389,0.00911273,90731.0,90715.0,0.011036]
[1768114029277,0.00911273,90731.0,90718.0,0.011036]
[1768114030177,0.00911273,90731.0,90719.0,0.011036]
[1768114033877,0.01176416,90732.0,90719.0,0.011036]
[1768114034079,0.08176416,90732.0,90719.0,0.011036]
[1768114035082,0.07,90732.0,90719.0,0.011036]
[1768114035770,0.07,90732.0,90720.0,0.011036]
[1768114036883,0.011033,90745.0,90728.0,0.011035]
[1768114037182,0.011033,90740.0,90724.0,0.011035]
[1768114037384,0.091033,90740.0,90724.0,0.011035]
[1768114037682,0.011033,90739.0,90724.0,0.011035]
[1768114037884,0.091033,90739.0,90724.0,0.011035]
[1768114038184,0.091033,90739.0,90722.0,0.011035]
[1768114038877,0.011034,90738.0,90722.0,0.011035]
[1768114039078,0.09005584,90738.0,90723.0,0.011035]
[1768114040182,0.00902184,90737.0,90723.0,0.011035]
[1768114040373,0.07902184,90737.0,90723.0,0.011035]
[1768114044684,0.0938,90736.0,90723.0,0.011035]
[1768114044887,0.1638,90736.0,90723.0,0.011035]
[1768114046287,0.174834,90736.0,90720.0,0.011036]
[1768114052693,0.00010936,90735.0,90720.0,0.011036]
[1768114052888,0.07010936,90735.0,90720.0,0.011036]